Cogmind - Beta 11.1 --- EXPLORER MODE // 2022.06.27 @ 21:23:11 Player: tkc Result: Self-destructed Performance ------------- Evolutions (1) 500 Regions Visited (2) 400 Robots Destroyed (16) 80 Value Destroyed (510) 510 Prototype IDs (3) 60 Alien Tech Used (0) 0 Bonus (0) 0 TOTAL SCORE: 1550 Bonus ------- None Cogmind --------- Core Integrity 400/400 Matter 225/300 Energy 121/250 System Corruption 0% Temperature Critical (515) Movement Core (600) Ox11 Location -9/Materials Parts ------- > --- POWER (3) -------- Ion Engine > --- PROPULSION (2) --- (None) > --- UTILITY (2) ------ Large Storage Unit Targeting Computer > --- WEAPON (3) ------- Heavy Particle Gun Heavy Particle Gun Heavy Particle Gun > --- INVENTORY (15) --- Hover Unit Structural Scanner Targeting Computer Core Shielding Utility Shielding Long-range Tractor Beam Mining Laser Peak State ------------ > --- POWER ------------ Ion Engine > --- PROPULSION ------- Advanced Treads Wheel > --- UTILITY ---------- Large Storage Unit Targeting Computer > --- WEAPON ----------- Heavy Particle Gun Heavy Particle Gun Heavy Particle Gun > --- INVENTORY -------- Hover Unit Structural Scanner Targeting Computer Core Shielding Utility Shielding Mining Laser [Rating: 19] Favorites ----------- Power Ion Engine Engine Ion Engine Propulsion Wheel Treads Improved Treads Leg Aluminum Leg Wheel Wheel Hover Unit Hover Unit Utility Targeting Computer Storage Large Storage Unit Processor Targeting Computer Protection Core Shielding Weapon Small Laser Energy Gun Small Laser Special Weapon Plasma Cutter Build | -11 -10 -9 ------- Run | Scr Mat Mat Slots Evolved 3 | . 1 2 Power 2 | . . 2 Propulsion . | . . . Utility . | . . . Weapon 1 | . 1 . Parts Attached 28 | 7 16 5 Power 3 | 1 2 . Engine 3 | 1 2 . Core . | . . . Reactor . | . . . Propulsion 7 | 2 4 1 Treads 2 | . 1 1 Leg 1 | 1 . . Wheel 2 | 1 1 . Hover 2 | . 2 . Flight . | . . . Utility 6 | 2 4 . Device . | . . . Storage 3 | . 3 . Processor 1 | 1 . . Hackware . | . . . Protection 2 | 1 1 . Artifact . | . . . Weapon 12 | 2 6 4 Energy Gun 10 | 2 4 4 Energy Cannon . | . . . Ballistic Gun . | . . . Ballistic Cannon . | . . . Launcher . | . . . Special Weapon 2 | . 2 . Impact Weapon . | . . . Slashing Weapon . | . . . Piercing Weapon . | . . . Special Melee Weapon . | . . . Unidentified Prototypes 1 | . . 1 Parts Lost 1 | . 1 . Power . | . . . Propulsion . | . . . Utility . | . . . Weapon 1 | . 1 . Highest Loss Streak 1 | . 1 . To Critical Strikes . | . . . Average Slot Usage (%) 81 | . 82 79 Engine 8 | . 7 10 Treads 5 | . 4 7 Leg 1 | . 1 . Wheel 6 | . 4 10 Hover 5 | . 6 2 Storage 5 | . 4 10 Processor 11 | . 12 10 Protection 5 | . 7 . Energy Gun 26 | . 26 26 Special Weapon 4 | . 4 2 Naked Turns . | . . . Heaviest Build 34 | 7 28 34 Greatest Support 23 | 10 23 22 Greatest Overweight (x) 3 | . 2 3 Average Overweight (x) . | . . 1 Largest Inventory Capacity 15 | 5 15 15 Average Capacity 7 | 5 6 15 Most Carried 7 | 5 6 7 Average Carried 4 | 3 4 6 Final Capacity 15 | 5 15 15 Final Carried 7 | 5 5 7 Class Distribution -------------------- 49% | Hacker-Mutant 41% | Hacker-Gunner 8% | Scavenger-Mutant Dominant Class ---------------- Hacker-Mutant | -10/Materials Hacker-Gunner | -9/Materials Resources | -11 -10 -9 ----------- Run | Scr Mat Mat Matter Collected 430 | 270 130 30 Remotely . | . . . Salvage Created 622 | 50 463 109 Parts 38 | . 30 8 Haulers Intercepted 1 | . 1 . Recyclers Shooed . | . . . Parts Field Recycled . | . . . Retrieved Matter . | . . . Parts Self-Destructed . | . . . Prevented . | . . . Kills | -11 -10 -9 ------- Run | Scr Mat Mat Combat Hostiles Destroyed 12 | 1 8 3 Guns 11 | 1 7 3 Classes Destroyed 3 | 1 2 . Hauler 1 | . 1 . Watcher 3 | . 3 . Grunt 12 | 1 8 3 Best Kill Streak 3 | 1 3 2 Combat Bots Only 3 | 1 3 2 Max Kills in Single Turn 2 | 1 2 1 Gunslinging . | . . . Exploded . | . . . Melee . | . . . Uniques/NPCs Destroyed . | . . . Combat | -11 -10 -9 -------- Run | Scr Mat Mat Damage Taken 387 | 41 346 . Core 92 | 14 78 . Absorbed by Shields . | . . . Redirected to Shielding 14 | . 14 . Regen/Repaired (Parts) 13 | . 13 . Core Remaining (%) 78 | 94 63 . Volleys Fired 52 | 7 38 7 Largest 3 | 2 3 3 Hottest 165 | 90 105 165 Shots Fired 108 | 14 73 21 Gun 105 | 14 70 21 Cannon . | . . . Launcher . | . . . Special 3 | . 3 . Kinetic . | . . . Thermal 108 | 14 73 21 Explosive . | . . . Electromagnetic . | . . . Robot Hit Streak 17 | 8 17 10 Robot Miss Streak 1 | 1 1 1 Penetration Max . | . . . Secondary Targets 3 | . 3 . Max Gunslinging Chain 1 | . 1 . Shots Hit Robots 84 | 13 60 11 Core Hits 29 | 2 23 4 Critical Kills . | . . . Critical Parts Destroyed . | . . . Critical Strikes . | . . . Melee Attacks . | . . . Impact . | . . . Slashing . | . . . Piercing . | . . . Sneak Attacks . | . . . Combat Hostiles . | . . . Follow-up Attacks . | . . . Damage Inflicted 1030 | 152 729 149 Guns 1020 | 152 719 149 Cannons . | . . . Explosions . | . . . Melee . | . . . Ramming . | . . . Kinetic . | . . . Thermal 1030 | 152 729 149 Explosive . | . . . Electromagnetic . | . . . Impact . | . . . Slashing . | . . . Piercing . | . . . Highest Corruption . | . . . Average Corruption . | . . . Corruption Purged . | . . . Corruption Blocked . | . . . Overload Shots . | . . . Overflow Damage . | . . . Projectiles . | . . . Explosions . | . . . Melee . | . . . Knockbacks . | . . . Impact . | . . . Kinetic . | . . . Secondary . | . . . Self-Inflicted Damage . | . . . Shots . | . . . Rammed . | . . . Targets Rammed . | . . . Kicked . | . . . Crushed . | . . . Highest Temperature 543 | 216 336 543 Average Temperature 114 | 102 93 242 Received Heat Transfer 369 | 36 333 . Effects 11 | . 3 8 Shutdowns 1 | . . 1 Energy Bleed 1 | . . 1 Interference 7 | . 3 4 Matter Decay 1 | . . 1 Short Circuit 1 | . . 1 Siege Activations . | . . . Robots Corrupted . | . . . Combat Hostiles . | . . . Parts Fried . | . . . Impact Corruptions . | . . . Robots Melted 1 | . 1 . Combat Hostiles 1 | . 1 . Parts Melted 6 | 1 4 1 Heat Transferred 2387 | 409 1682 296 Parts Sabotaged . | . . . Parts Stolen . | . . . Parts Stripped . | . . . Power Chain Reactions . | . . . Missiles Intercepted . | . . . Alert | -11 -10 -9 ------- Run | Scr Mat Mat Peak Influence 279 | 20 279 154 Initial 84 | . 9 84 Average 109 | 9 164 101 Maximum Alert Level 1 | . 1 . Low Security (%) 74 | 100 52 100 Level 1 25 | . 47 . Level 2 . | . . . Level 3 . | . . . Level 4 . | . . . Level 5 . | . . . High Security . | . . . Max Security . | . . . Squads Dispatched 1 | . 1 . Investigation 1 | . 1 . Extermination . | . . . Reinforcement . | . . . Assault . | . . . Garrison . | . . . Intercept . | . . . Searches Triggered . | . . . Construction Impeded . | . . . Haulers Reinforced . | . . . Active Scanning Responses . | . . . Cargo Convoy Interrupts . | . . . Stealth | -11 -10 -9 --------- Run | Scr Mat Mat Distress Signals 3 | . 2 1 Communications Jammed . | . . . Distress Signals . | . . . Times Spotted 19 | 1 14 4 Peak Tracking Total 6 | 1 6 4 Tactical Retreats . | . . . Traps | -11 -10 -9 ------- Run | Scr Mat Mat Traps Triggered 3 | . 3 . Indirectly . | . . . Trap Hack Attempts . | . . . Triggered . | . . . Disarmed . | . . . Reprogrammed . | . . . Reused . | . . . Traps Extracted . | . . . Installed . | . . . Triggered . | . . . Machines | -11 -10 -9 ---------- Run | Scr Mat Mat Machines Disabled . | . . . Max in Single Turn . | . . . Machines Sabotaged . | . . . Garrisons Compromised . | . . . Overloaded Fab Kills . | . . . Hacking | -11 -10 -9 --------- Run | Scr Mat Mat Machines Accessed 2 | . 2 . Terminals 1 | . 1 . Fabricators . | . . . Repair Stations 1 | . 1 . Recycling Units . | . . . Scanalyzers . | . . . Garrison Access . | . . . Total Hacks 6 | . 6 . Successful 4 | . 4 . Failed 2 | . 2 . Catastrophic . | . . . Database Lockouts . | . . . Manual . | . . . Terminals 2 | . 2 . Fabricators . | . . . Repair Stations 4 | . 4 . Recycling Units . | . . . Scanalyzers . | . . . Garrison Access . | . . . Terminal Hacks 1 | . 1 . Prototype ID Bank 1 | . 1 . Fabricator Hacks . | . . . Repair Station Hacks 3 | . 3 . Scan Component 1 | . 1 . Repair 1 | . 1 . Refit 1 | . 1 . Recycling Unit Hacks . | . . . Scanalyzer . | . . . Garrison Access Hacks . | . . . Unauthorized Hacks . | . . . Terminals . | . . . Fabricators . | . . . Repair Stations . | . . . Recycling Units . | . . . Scanalyzers . | . . . Garrison Access . | . . . Data Cores Recovered . | . . . Used . | . . . Hacking Detections 1 | . 1 . Full Trace Events 1 | . 1 . Feedback Events . | . . . Feedback Blocked . | . . . Robot Schematics Acquired . | . . . Robots Built . | . . . Authchips . | . . . Time . | . . . Total Robot Build Rating . | . . . Part Schematics Acquired . | . . . Parts Built . | . . . Authchips . | . . . Time . | . . . Total Part Build Rating . | . . . Parts Repaired 1 | . 1 . Time 26 | . 26 . Parts Recycled . | . . . Recycled Matter . | . . . Retrieved Matter . | . . . Retrieved Components . | . . . Parts Scanalyzed . | . . . Part Schematics Acquired . | . . . Parts Damaged . | . . . Bothacking | -11 -10 -9 ------------ Run | Scr Mat Mat Used RIF Installer . | . . . Robots Hacked . | . . . Non-combat . | . . . Combat . | . . . Robot Hacks Applied . | . . . Relay Couplers Released . | . . . Fabnet Peak Effective % . | . . . Robots Rewired . | . . . Allies Hacked . | . . . Hacks Repelled . | . . . Allies | -11 -10 -9 -------- Run | Scr Mat Mat Total Allies . | . . . Largest Group . | . . . Highest-Rated Group . | . . . Highest-Rated Ally . | . . . Total Orders . | . . . Ally Attacks . | . . . Total Damage . | . . . Kills . | . . . Allies Corrupted . | . . . Allies Melted . | . . . Intel | -11 -10 -9 ------- Run | Scr Mat Mat Robot Analysis Total . | . . . Derelict Logs Recovered . | . . . Drone Launches . | . . . Drone Recoveries . | . . . Exploration | -11 -10 -9 ------------- Run | Scr Mat Mat Turns Passed 763 | 208 399 156 Spaces Moved 474 | 152 256 66 Core 65 | 16 49 . Treads 73 | . 33 40 Legs 172 | 133 39 . Wheels 107 | 3 78 26 Hover 57 | . 57 . Flight . | . . . Fastest Speed 50 | 50 50 110 Average Speed 114 | 111 98 180 Slowest Speed 225 | 120 160 225 Overloaded Moves . | . . . Propulsion Burnouts . | . . . Robots Hopped . | . . . Cave-ins Triggered . | . . . Exploration Rate (%) 19 | 8 41 9 Regions Visited 2 Branch Regions . Pre-discovered Areas . | . . . Known Exits Taken 2 | 1 1 . Unknown Exits Taken . | . . . Scrap Searched . | . . . Spaces Dug . | . . . Terrain Destroyed . | . . . Melee . | . . . Projectile . | . . . AOE . | . . . Terrain Rammed . | . . . Walls Destroyed . | . . . Machines Disabled . | . . . Actions | -11 -10 -9 --------- Run | Scr Mat Mat Total 593 | 175 329 89 Wait . | . . . Move 472 | 151 255 66 Hop . | . . . Pick Up 24 | 10 9 5 Fast Attach 10 | 2 8 . Attach 13 | 5 5 3 Detach 1 | . . 1 Swap 5 | . 3 2 Drop 16 | . 11 5 Fire 52 | 7 38 7 Melee . | . . . Ram . | . . . Kick . | . . . Crush . | . . . Escape Stasis . | . . . Rewire . | . . . Trap . | . . . Miscellaneous . | . . . Route ------- -11/Scrapyard -10/Materials (discovered 2 exits: *Mat x2) -9/Materials History --------- Turn | Location | Event 2 | -11/Scrapyard | Met Revision 17 82 | -11/Scrapyard | Identified exit to Materials 82 | -11/Scrapyard | Discovered exit to Materials (range 8) 209 | -11/Scrapyard | Entered Materials 209 | -10/Materials | Evolved 1 slot: Weapon x1 255 | -10/Materials | Repaired Lgt. Ion Engine 467 | -10/Materials | Identified exit to Materials 467 | -10/Materials | Discovered exit to Materials (range 16) 582 | -10/Materials | Discovered exit to Materials (range 15) 608 | -10/Materials | Entered another Materials area 608 | -9/Materials | Evolved 2 slots: Power x2 764 | -9/Materials | Self-destructed Last Messages --------------- When the line of fire is red, you are attempting to shoot through an object at another target, which incurs significant penalties. G-34 Mercenary destroyed. K-01 Serf collects debris. Particle Gun melted. G-47 Trooper destroyed. Adv. Treads broken. Overheating: Short circuit. K-01 Serf collects debris. Overheating: Matter decay (-25). Power failure, Ion Engine shutdown. K-01 Serf collects debris. Overheating: Energy bleed (-24). Overheating: System interference. Hvy. Particle Gun temporarily disabled. Targeting Computer temporarily disabled. 00763_ Dropped Broken Adv. Treads. 00764_ Overheating: System interference. 00764_ Hvy. Particle Gun temporarily disabled. 00764_ Dropped Wheel. Map ----- +----------------------------------------------------+ | | | ?????????????????????????????????????????????????? | | ?????????????????????????????????????????????????? | | ?????????????????????????????????????????????????? | | ?????????????????????????????????????????????????? | | ?????????????????????????????????????????????????? | | ?????????????????????????????????????????????????? | | ?????????????????????????????????????????????????? | | ?????????????????????????????????????????????????? | | ?????????????????????????????????????????????????? | | ?????????????????????????????????????????????????? | | ?????????????????????????????????????????????????? | | ?????????????????????????????????###+????????????? | | ????????????????????????????????? ????????????? | | ????????????????????????????????? ????????????? | | ?????????????????????????????????# #????????????? | | ?????????????????????????????????# #????????????? | | ?????????????????????????????????# #????????????? | | ?????????????????????????????????# #????????????? | | ?????????????????????????????????# #????????????? | | ?????????????????????????????????# #????????????? | | ?????????????????????????????????# # ???????????? | | ?????????????????????????????????# # ??????????? | | ?????????????????????????????????# # ?????????? | | ?????????????????################# ###+########## | | ?????????????????# k @= | | ?????????? | | ?????????? = | | ??????????? !%#################### #### | | ???????????####### =%=???????????????????# #??? | | ?????????????????## ????????????????????# #??? | | ??????????????????# ?????????????????????# #??= | | ??????????????????# ??????????????????????# # == | | ??????????????????+???????????????????????+ + *] | | ????????????????? ????????????????????????# # | | ???????????????? ????????????????????????# #?? | | ???????????????##?????????????????????????# #??? | | ??????????????????????????????????????????# #??? | | ?????????????????????????????????######+### #### | | ??????????????????????????????? !! | | ??????????????????????????????? ! | | ??????????????????????????????? == | | ???????????????????????????????############ = | | ??????????????????????????????????????????# [[ | | ??????????????????????????????????????????# [[ | | ??????????????????????????????????????????# #### | | ??????????????????????????????????????????# #??? | | ??????????????????????????????????????????# #??? | | ??????????????????????????????????????????# #??? | | ??????????????????????????????????????????+ #??? | +----------------------------------------------------+ Best States ------------- Heat Dissipation 28 Energy Generation 10 Energy Capacity 250 Matter Stores 350 Matter Capacity 350 Sight Range 16 Terrain Scan Density 10 Resistance: KI 35 Resistance: TH 35 Resistance: EX 35 Resistance: EM 35 Resistance: I 35 Resistance: S 35 Resistance: P 35 Core Shielding 20 Utility Shielding 33 Evasion (%) 55 Targeting Accuracy 5 Recoil Reduction 1 Offensive Hacking 20 Item Schematics ----------------- None Robot Schematics ------------------ None Fabricated ------------ Nothing Alien Tech Used ----------------- None Achievements -------------- Crack Shot It's Just You Loot Pinata One Hack Too Far Part-time Mechanic Risk Taker Challenges ------------ None Game ------ Seed SpacefoldTiamatDissipator Manual? 0 Play Time 00:39:18 Cumulative 1.2 hours Start 2022.06.26 @ 23:28:18 End 2022.06.27 @ 21:23:11 Sessions 3 Manual Loads 0 Difficulty Explorer Special Mode None Game No. 1 Rogue 0 Adventurer 0 Explorer 1 Win Type - Total 0 Types 0/0/0/0/0/0/0/0/0 Lore% 0 Gallery% 2 Achievement% 2 Wizard Run 0 Options --------- ASCII 0 Keyboard 0 Movement Mouse Keybinds 0 Fullscreen 1 Font 18/SmallcapsGlow Map View 76x50 Tactical HUD 1 Map Filters NONE Filters NONE Steam 1 RUN: db5d4aaa-0878-4a03-8cd2-657459d8d202